fUSD/lending_fUSD_20240318
["ID","MTS","AMOUNT","RATE_DAILY","PERIOD"]
[319497190,1710801525880,-500.0,0.00024657,2]
[319497191,1710801525905,-500.0,0.00024657,2]
[319497192,1710801525928,-983.25,0.00024657,2]
[319497193,1710801525951,-1188.81,0.00024657,2]
[319497194,1710801525975,-1417.26,0.00024657,2]
[319497195,1710801526000,-500.0,0.00024657,2]
[319497196,1710801526023,-2122.22,0.00024657,2]
[319497197,1710801526046,-500.0,0.00024657,2]
[319497198,1710801526069,-1018.71,0.00024657,2]
[319497199,1710801526094,-500.0,0.00024657,2]
[319497200,1710801526118,-781.25,0.00024657,2]
[319497201,1710801526142,-569.49,0.00024657,2]
[319497202,1710801526167,-500.0,0.00024657,2]
[319497203,1710801526190,-807.78,0.00024657,2]
[319497204,1710801526213,-1183.77,0.00024657,2]
[319497205,1710801526236,-500.0,0.00024657,2]
[319497206,1710801526261,-500.0,0.00024657,2]
[319497207,1710801526284,-500.0,0.00024657,2]
[319497208,1710801526308,-500.0,0.00024657,2]
[319497209,1710801526331,-1780.72,0.00024657,2]
[319497210,1710801526354,-500.0,0.00024657,2]
[319497211,1710801526377,-1006.2,0.00024657,2]
[319497212,1710801526402,-500.0,0.00024657,2]
[319497213,1710801526425,-500.0,0.00024657,2]
[319497214,1710801526449,-558.03,0.00024657,2]
[319497215,1710801526472,-1390.6,0.00024657,2]
[319497216,1710801526494,-1452.64,0.00024657,2]
[319497217,1710801526517,-500.0,0.00024657,2]
[319497218,1710801526543,-500.0,0.00024657,2]
[319497219,1710801526567,-500.0,0.00024657,2]
[319497220,1710801526589,-2348.83,0.00024657,2]
[319497221,1710801526612,-500.0,0.00024657,2]
[319497222,1710801526638,-883.91,0.00024657,2]
[319497223,1710801526682,-500.0,0.00024657,2]
[319497224,1710801526706,-500.0,0.00024657,2]
[319497225,1710801526729,-945.54,0.00024657,2]
[319497226,1710801526752,-826.45,0.00024657,2]
[319497227,1710801526775,-155.0,0.00024658,2]
[319497228,1710801526801,-200.0,0.00024777,2]
[319497229,1710801526826,-151.05666748,0.00024895,2]
[319497230,1710801526849,-500.0,0.0002493,2]
[319497231,1710801526874,-500.0,0.0002493,2]
[319497232,1710801526898,-565.93,0.0002493,2]
[319497233,1710801526921,-574.97,0.0002493,2]
[319497234,1710801526945,-500.0,0.0002493,2]
[319497235,1710801526969,-2945.07,0.0002493,2]
[319497236,1710801526993,-500.0,0.0002493,2]
[319497237,1710801527017,-500.0,0.0002493,2]
[319497238,1710801527041,-839.75,0.0002493,2]
[319497239,1710801527207,-788.14,0.0002493,2]
[319497240,1710801527232,-815.54,0.0002493,2]
[319497241,1710801527255,-3447.08,0.0002493,2]
[319497242,1710801527278,-1456.55,0.0002493,2]
[319497243,1710801527300,-7984.72,0.0002493,2]
[319497244,1710801527323,-523.4,0.00024931,2]
[319497245,1710801527346,-572.66,0.00024931,2]
[319497246,1710801527370,-1533.64,0.00024931,2]
[319497247,1710801527404,-475.78156902,0.00024931,2]
[319497248,1710801527429,-989.36,0.00024931,2]
[319497249,1710801527452,-1069.34,0.00024931,2]
[319497250,1710801527476,-500.0,0.00024931,2]
[319497251,1710801527500,-686.39,0.00024931,2]
[319497252,1710801527524,-1396.55,0.00024931,2]
[319497253,1710801527546,-500.0,0.00024931,2]
[319497254,1710801527571,-610.81,0.00024931,2]
[319497255,1710801527595,-500.0,0.00024931,2]
[319497256,1710801527620,-807.02,0.00024931,2]
[319497257,1710801527644,-1025.84,0.00024931,2]
[319497258,1710801527672,-717.19,0.00024931,2]
[319497259,1710801527697,-1632.41,0.00024931,2]
[319497260,1710801527721,-763.85,0.00024931,2]
[319497261,1710801527746,-1011.43,0.00024931,2]
[319497262,1710801527770,-511.51,0.00024931,2]
[319497263,1710801527793,-1273.81,0.00024931,2]
[319497264,1710801527819,-500.0,0.00024931,2]
[319497265,1710801527843,-776.97,0.00024931,2]
[319497266,1710801527868,-604.76,0.00024931,2]
[319497267,1710801527901,-1785.78,0.00024931,2]
[319497268,1710801527926,-500.0,0.00024931,2]
[319497269,1710801527951,-630.8,0.00024931,2]
[319497270,1710801527975,-750.05,0.00024931,2]
[319497271,1710801527998,-700.3,0.00024931,2]
[319497272,1710801528023,-160.55,0.00024931,2]
[319497273,1710801528047,-500.0,0.00024931,2]
[319497274,1710801528072,-500.0,0.00024931,2]
[319497275,1710801528098,-500.0,0.00024931,2]
[319497276,1710801528122,-771.5,0.00024931,2]
[319497277,1710801528149,-500.0,0.00024931,2]
[319497278,1710801528175,-816.17,0.00024931,2]
[319497279,1710801528198,-500.0,0.00024931,2]
[319497280,1710801528221,-761.47,0.00024931,2]
[319497281,1710801528244,-500.0,0.00024931,2]
[319497282,1710801528267,-500.0,0.00024931,2]
[319497283,1710801528290,-556.75,0.00024931,2]
[319497284,1710801528313,-1208.26,0.00024931,2]
[319497285,1710801528336,-500.0,0.00024931,2]
[319497286,1710801528359,-3033.01,0.00024931,2]
[319497287,1710801528383,-500.0,0.00024931,2]
[319497288,1710801528409,-500.0,0.00024931,2]
[319497289,1710801528434,-1975.39,0.00024931,2]
[319497290,1710801528458,-741.46,0.00024931,2]
[319497291,1710801528481,-1339.38,0.00024931,2]
[319497292,1710801528504,-2523.93,0.00024931,2]
[319497293,1710801528527,-641.13,0.00024931,2]
[319497294,1710801528551,-1219.93,0.00024931,2]
[319497295,1710801528574,-1679.61,0.00024931,2]
[319497296,1710801528597,-826.95,0.00024931,2]
[319497297,1710801528621,-500.0,0.00024931,2]
[319497298,1710801528644,-3302.65,0.00024931,2]
[319497299,1710801528671,-500.0,0.00024931,2]
[319497300,1710801528696,-500.0,0.00024931,2]
[319497301,1710801528720,-794.16,0.00024931,2]
[319497302,1710801528745,-1882.96,0.00024931,2]
[319497303,1710801528768,-3607.26,0.00024931,2]
[319497304,1710801528794,-2869.72,0.00024931,2]
[319497305,1710801528817,-769.85,0.00024931,2]
[319497306,1710801528842,-500.0,0.00024931,2]
[319497307,1710801528865,-983.25,0.00024931,2]
[319497308,1710801528888,-500.0,0.00024931,2]
[319497309,1710801528914,-1188.81,0.00024931,2]
[319497310,1710801528939,-1417.26,0.00024931,2]
[319497311,1710801528965,-500.0,0.00024931,2]
[319497312,1710801528990,-2122.22,0.00024931,2]
[319497313,1710801529013,-500.0,0.00024931,2]
[319497314,1710801529041,-1018.71,0.00024931,2]
[319497315,1710801529066,-500.0,0.00024931,2]
[319497316,1710801529093,-781.25,0.00024931,2]
[319497317,1710801529118,-569.49,0.00024931,2]
[319497318,1710801529142,-500.0,0.00024931,2]
[319497319,1710801529168,-807.78,0.00024931,2]
[319497320,1710801529192,-1183.77,0.00024931,2]
[319497321,1710801529215,-500.0,0.00024931,2]
[319497322,1710801529237,-500.0,0.00024931,2]
[319497323,1710801529262,-500.0,0.00024931,2]
[319497324,1710801529284,-500.0,0.00024931,2]
[319497325,1710801529309,-1780.72,0.00024931,2]
[319497326,1710801529333,-395.93682457,0.00024931,2]
[319497327,1710801529356,-1006.2,0.00024931,2]
[319497328,1710801529379,-500.0,0.00024931,2]
[319497329,1710801529406,-500.0,0.00024931,2]
[319497330,1710801529433,-558.03,0.00024931,2]
[319497331,1710801529457,-1390.6,0.00024931,2]
[319497332,1710801529480,-1452.64,0.00024931,2]
[319497333,1710801529504,-500.0,0.00024931,2]
[319497334,1710801529529,-500.0,0.00024931,2]
[319497335,1710801529553,-500.0,0.00024931,2]
[319497336,1710801529578,-2348.83,0.00024931,2]
[319497337,1710801529602,-500.0,0.00024931,2]
[319497338,1710801529627,-883.91,0.00024931,2]
[319497339,1710801529654,-411.35806262,0.00024931,2]
[319497340,1710801529684,-500.0,0.00024931,2]
[319497341,1710801529708,-945.54,0.00024931,2]
[319497342,1710801529732,-826.45,0.00024931,2]
[319497343,1710801529906,-155.0,0.00025,2]
[319497344,1710801529931,-3040.27810605,0.00025,5]
[319497345,1710801529956,-1018.42220439,0.00025,10]
[319497346,1710801529982,-396.11,0.00025095,2]
[319497347,1710801530005,-752.02,0.00025136,10]
[319497348,1710801530030,-408.47,0.00025146,2]
[319497349,1710801530055,-408.47,0.00025146,2]
[319497350,1710801530097,-408.47,0.00025146,2]
[319497351,1710801530122,-311.11,0.00025146,2]
[319497352,1710801530148,-500.0,0.00025204,2]
[319497353,1710801530173,-500.0,0.00025204,2]
[319497354,1710801530198,-565.93,0.00025204,2]
[319497355,1710801530223,-574.97,0.00025204,2]
[319497356,1710801530251,-500.0,0.00025204,2]
[319497357,1710801530276,-2945.07,0.00025204,2]
[319497358,1710801530300,-500.0,0.00025204,2]
[319497359,1710801530324,-500.0,0.00025204,2]
[319497360,1710801530349,-839.75,0.00025204,2]
[319497361,1710801530374,-788.14,0.00025204,2]
[319497362,1710801530400,-815.54,0.00025204,2]
[319497363,1710801530427,-3447.08,0.00025204,2]
[319497364,1710801530453,-1456.55,0.00025204,2]
[319497365,1710801530480,-4638.48196846,0.00025204,2]
[319497366,1710801530918,-150.0,0.00019491,2]
[319497367,1710801530945,-5.0,0.00019491,2]
[319497368,1710801530971,-145.0,0.00022464,2]
[319497369,1710801531005,-150.0,0.00022464,2]
[319497370,1710801531030,-150.0,0.00022464,2]
[319497371,1710801531060,-55.0,0.00022464,2]
[319497372,1710801531083,-95.0,0.00023561,2]
[319497373,1710801531109,-150.0,0.00023561,2]
[319497374,1710801531141,-150.0,0.00023561,2]
[319497375,1710801531170,-105.0,0.00023561,2]
[319497376,1710801531191,-45.0,0.00023835,2]
[319497377,1710801531223,-150.0,0.00023835,2]
[319497378,1710801531255,-150.0,0.00021917,2]
[319497379,1710801531285,-150.0,0.00021917,2]
[319497380,1710801531314,-150.0,0.00021917,2]
[319497381,1710801531344,-50.0,0.00021917,2]
[319497382,1710801531364,-100.0,0.00022191,2]
[319497383,1710801531400,-173.54840279,0.00022191,2]
[319497384,1710801557926,-148367.39595502,0.000218,5]
[319497385,1710801557978,-1018.42220439,0.00025,10]
[319497386,1710801558024,-150.0,0.0002531,10]
[319497387,1710801558062,-151.031907,0.00025448,6]
[319497388,1710801558099,-3678.03837333,0.00025479,30]
[319497389,1710801558146,-600.0,0.00026,27]
[319497390,1710801558198,-151.031907,0.00026448,6]
[319497391,1710801558236,-967.17598677,0.00026749,4]
[319497392,1710801558267,-967.17598678,0.00026749,4]
[319497393,1710801558306,-600.0,0.00027,28]
[319497394,1710801558362,-151.031907,0.00027448,6]
[319497395,1710801558404,-199.72,0.00027532,120]
[319497396,1710801558453,-752.02,0.00027876,10]
[319497397,1710801558505,-600.0,0.00028,29]
[319497398,1710801558553,-151.031907,0.00028448,6]
[319497399,1710801558594,-152.0,0.00028497,4]
[319497400,1710801558636,-600.0,0.00029,30]
[319497401,1710801558679,-151.031907,0.00029448,6]
[319497402,1710801558713,-546.1181314,0.00029567,4]
[319497403,1710801558752,-1569.43193933,0.0003,4]
[319497404,1710801558786,-268.31069023,0.0003,4]
[319497405,1710801558821,-2275.61842614,0.0003,4]
[319497406,1710801558851,-591.49765394,0.0003,17]
[319497407,1710801558882,-185.91255156,0.0003,14]
[319497408,1710801558917,-155.0,0.0003,4]
[319497409,1710801558946,-382.30325147,0.0003,4]
[319497410,1710801558978,-9709.7600522,0.0003,4]
[319497411,1710801559010,-713.64088082,0.0003,30]
[319497412,1710801559045,-38617.70312828,0.0003,30]
[319497413,1710801559080,-32950.76734465,0.0003,4]
[319497414,1710801559111,-155.0,0.0003,5]
[319497415,1710801559144,-40484.51814454,0.0003,4]
[319497416,1710801559175,-600.0,0.0003,31]
[319497417,1710801559211,-715.17932069,0.0003,6]
[319497418,1710801559243,-152.0,0.00030163,5]
[319497419,1710801559273,-500.0,0.0003041,4]
[319497420,1710801559302,-652.28,0.0003041,4]
[319497421,1710801559331,-626.02,0.0003041,4]
[319497422,1710801559357,-783.99,0.0003041,4]
[319497423,1710801559385,-500.0,0.0003041,4]
[319497424,1710801559412,-500.0,0.0003041,4]
[319497425,1710801559441,-500.0,0.0003041,4]
[319497426,1710801559467,-500.0,0.0003041,4]
[319497427,1710801559494,-629.13,0.0003041,4]
[319497428,1710801559522,-1069.15,0.0003041,4]
[319497429,1710801559549,-500.0,0.0003041,4]
[319497430,1710801559580,-500.0,0.0003041,4]
[319497431,1710801559608,-500.0,0.0003041,4]
[319497432,1710801559637,-500.0,0.0003041,4]
[319497433,1710801559668,-2012.84,0.0003041,4]
[319497434,1710801559696,-611.79,0.0003041,4]
[319497435,1710801559724,-500.0,0.0003041,4]
[319497436,1710801559752,-942.32,0.0003041,4]
[319497437,1710801559779,-500.0,0.0003041,4]
[319497438,1710801559810,-1142.95,0.0003041,4]
[319497439,1710801559840,-525.8,0.0003041,4]
[319497440,1710801559872,-500.0,0.0003041,4]
[319497441,1710801559905,-707.22,0.0003041,4]
[319497442,1710801559942,-500.0,0.0003041,4]
[319497443,1710801559975,-500.0,0.0003041,4]
[319497444,1710801560005,-500.0,0.0003041,4]
[319497445,1710801560035,-719.76,0.0003041,4]
[319497446,1710801560071,-625.52532933,0.0003041,4]
[319497447,1710801560104,-500.0,0.0003041,4]
[319497448,1710801560135,-500.0,0.0003041,4]
[319497449,1710801560167,-1307.23,0.0003041,4]
[319497450,1710801560202,-500.0,0.0003041,4]
[319497451,1710801560229,-687.16,0.0003041,4]
[319497452,1710801560256,-500.0,0.0003041,4]
[319497453,1710801560287,-151.031907,0.00030448,7]
[319497454,1710801560314,-752.02,0.00030616,10]
[319497455,1710801560342,-500.0,0.00030684,4]
[319497456,1710801560368,-652.28,0.00030684,4]
[319497457,1710801560395,-626.02,0.00030684,4]
[319497458,1710801560427,-783.99,0.00030684,4]
[319497459,1710801560455,-500.0,0.00030684,4]
[319497460,1710801560482,-500.0,0.00030684,4]
[319497461,1710801560509,-500.0,0.00030684,4]
[319497462,1710801560537,-500.0,0.00030684,4]
[319497463,1710801560564,-629.13,0.00030684,4]
[319497464,1710801560590,-1069.15,0.00030684,4]
[319497465,1710801560616,-500.0,0.00030684,4]
[319497466,1710801560642,-500.0,0.00030684,4]
[319497467,1710801560670,-500.0,0.00030684,4]
[319497468,1710801560695,-500.0,0.00030684,4]
[319497469,1710801560720,-2012.84,0.00030684,4]
[319497470,1710801560746,-611.79,0.00030684,4]
[319497471,1710801560771,-500.0,0.00030684,4]
[319497472,1710801560796,-942.32,0.00030684,4]
[319497473,1710801560823,-500.0,0.00030684,4]
[319497474,1710801560849,-1142.95,0.00030684,4]
[319497475,1710801561381,-525.8,0.00030684,4]
[319497476,1710801561412,-500.0,0.00030684,4]
[319497477,1710801561441,-707.22,0.00030684,4]
[319497478,1710801561466,-500.0,0.00030684,4]
[319497479,1710801561492,-500.0,0.00030684,4]
[319497480,1710801561517,-500.0,0.00030684,4]
[319497481,1710801561543,-719.76,0.00030684,4]
[319497482,1710801561569,-500.0,0.00030684,4]
[319497483,1710801561595,-500.0,0.00030684,4]
[319497484,1710801561622,-1307.23,0.00030684,4]
[319497485,1710801561648,-500.0,0.00030684,4]
[319497486,1710801561674,-687.16,0.00030684,4]
[319497487,1710801561699,-530.74673024,0.00030684,4]
[319497488,1710801561725,-500.0,0.0003076,10]
[319497489,1710801561751,-617.68846199,0.00030958,4]
[319497490,1710801561777,-652.28,0.00030958,4]
[319497491,1710801561803,-626.02,0.00030958,4]
[319497492,1710801561829,-783.99,0.00030958,4]
[319497493,1710801561856,-500.0,0.00030958,4]
[319497494,1710801561887,-500.0,0.00030958,4]
[319497495,1710801561914,-500.0,0.00030958,4]
[319497496,1710801561943,-500.0,0.00030958,4]
[319497497,1710801561968,-629.13,0.00030958,4]
[319497498,1710801561995,-1069.15,0.00030958,4]
[319497499,1710801562022,-500.0,0.00030958,4]
[319497500,1710801562049,-500.0,0.00030958,4]
[319497501,1710801562081,-500.0,0.00030958,4]
[319497502,1710801562109,-500.0,0.00030958,4]
[319497503,1710801562135,-2012.84,0.00030958,4]
[319497504,1710801562162,-611.79,0.00030958,4]
[319497505,1710801562191,-500.0,0.00030958,4]
[319497506,1710801562215,-942.32,0.00030958,4]
[319497507,1710801562239,-500.0,0.00030958,4]
[319497508,1710801562264,-1142.95,0.00030958,4]
[319497509,1710801562288,-525.8,0.00030958,4]
[319497510,1710801562312,-500.0,0.00030958,4]
[319497511,1710801562337,-707.22,0.00030958,4]
[319497512,1710801562363,-500.0,0.00030958,4]
[319497513,1710801562387,-500.0,0.00030958,4]
[319497514,1710801562418,-500.0,0.00030958,4]
[319497515,1710801562442,-719.76,0.00030958,4]
[319497516,1710801562466,-500.0,0.00030958,4]
[319497517,1710801562493,-500.0,0.00030958,4]
[319497518,1710801562519,-1307.23,0.00030958,4]
[319497519,1710801562545,-500.0,0.00030958,4]
[319497520,1710801562570,-687.16,0.00030958,4]
[319497521,1710801562597,-600.0,0.00031,32]
[319497522,1710801562622,-652.28,0.00031232,4]
[319497523,1710801562646,-626.02,0.00031232,4]
[319497524,1710801562676,-783.99,0.00031232,4]
[319497525,1710801562702,-500.0,0.00031232,4]
[319497526,1710801562726,-500.0,0.00031232,4]
[319497527,1710801562751,-500.0,0.00031232,4]
[319497528,1710801562777,-174.55237214,0.00031232,4]
[319497529,1710801562803,-629.13,0.00031232,4]
[319497530,1710801562829,-1069.15,0.00031232,4]
[319497531,1710801562855,-500.0,0.00031232,4]
[319497532,1710801562882,-500.0,0.00031232,4]
[319497533,1710801562909,-500.0,0.00031232,4]
[319497534,1710801562938,-500.0,0.00031232,4]
[319497535,1710801562965,-2012.84,0.00031232,4]
[319497536,1710801562991,-611.79,0.00031232,4]
[319497537,1710801563017,-500.0,0.00031232,4]
[319497538,1710801563042,-942.32,0.00031232,4]
[319497539,1710801563067,-500.0,0.00031232,4]
[319497540,1710801563092,-1142.95,0.00031232,4]
[319497541,1710801563122,-525.8,0.00031232,4]
[319497542,1710801563174,-418.51059425,0.00031232,4]
[319497543,1710801563201,-707.22,0.00031232,4]
[319497544,1710801563225,-500.0,0.00031232,4]
[319497545,1710801563250,-500.0,0.00031232,4]
[319497546,1710801563276,-205.84546626,0.00031232,4]
[319497547,1710801563302,-719.76,0.00031232,4]
[319497548,1710801563327,-334.97887908,0.00031232,4]
[319497549,1710801563352,-500.0,0.00031232,4]
[319497550,1710801563377,-1307.23,0.00031232,4]
[319497551,1710801563401,-500.0,0.00031232,4]
[319497552,1710801563428,-687.16,0.00031232,4]
[319497553,1710801563455,-151.031907,0.00031448,7]
[319497554,1710801563481,-652.28,0.00031506,4]
[319497555,1710801563506,-626.02,0.00031506,4]
[319497556,1710801563533,-783.99,0.00031506,4]
[319497557,1710801563559,-500.0,0.00031506,4]
[319497558,1710801563585,-500.0,0.00031506,4]
[319497559,1710801563614,-500.0,0.00031506,4]
[319497560,1710801563643,-629.13,0.00031506,4]
[319497561,1710801563673,-1069.15,0.00031506,4]
[319497562,1710801563699,-500.0,0.00031506,4]
[319497563,1710801563724,-500.0,0.00031506,4]
[319497564,1710801563749,-500.0,0.00031506,4]
[319497565,1710801563775,-557.71443676,0.00031506,4]
[319497566,1710801563800,-2012.84,0.00031506,4]
[319497567,1710801563827,-611.79,0.00031506,4]
[319497568,1710801563852,-500.0,0.00031506,4]
[319497569,1710801563877,-942.32,0.00031506,4]
[319497570,1710801563903,-500.0,0.00031506,4]
[319497571,1710801563932,-1142.95,0.00031506,4]
[319497572,1710801563957,-525.8,0.00031506,4]
[319497573,1710801563983,-707.22,0.00031506,4]
[319497574,1710801564010,-293.03037678,0.00031506,4]
[319497575,1710801564037,-500.0,0.00031506,4]
[319497576,1710801564063,-719.76,0.00031506,4]
[319497577,1710801564090,-387.46076504,0.00031506,4]
[319497578,1710801564116,-1307.23,0.00031506,4]
[319497579,1710801564143,-500.0,0.00031506,4]
[319497580,1710801564173,-687.16,0.00031506,4]
[319497581,1710801564203,-652.28,0.0003178,4]
[319497582,1710801564229,-626.02,0.0003178,4]
[319497583,1710801564253,-783.99,0.0003178,4]
[319497584,1710801564278,-500.0,0.0003178,4]
[319497585,1710801564302,-500.0,0.0003178,4]
[319497586,1710801564327,-500.0,0.0003178,4]
[319497587,1710801564351,-629.13,0.0003178,4]
[319497588,1710801564376,-1069.15,0.0003178,4]
[319497589,1710801564401,-311.27363664,0.0003178,4]
[319497590,1710801564427,-500.0,0.0003178,4]
[319497591,1710801564452,-500.0,0.0003178,4]
[319497592,1710801564476,-2012.84,0.0003178,4]
[319497593,1710801564501,-611.79,0.0003178,4]
[319497594,1710801564525,-500.0,0.0003178,4]
[319497595,1710801564550,-942.32,0.0003178,4]
[319497596,1710801564587,-500.0,0.0003178,4]
[319497597,1710801564611,-1142.95,0.0003178,4]
[319497598,1710801564635,-525.8,0.0003178,4]
[319497599,1710801564661,-707.22,0.0003178,4]
[319497600,1710801564691,-500.0,0.0003178,4]
[319497601,1710801564715,-719.76,0.0003178,4]
[319497602,1710801564740,-1307.23,0.0003178,4]
[319497603,1710801564765,-500.0,0.0003178,4]
[319497604,1710801564789,-687.16,0.0003178,4]
[319497605,1710801564815,-150.49396833,0.00031781,30]
[319497606,1710801564841,-152.0,0.00031829,6]
[319497607,1710801564867,-500.0,0.00031856,10]
[319497608,1710801564895,-600.0,0.00032,33]
[319497609,1710801564928,-652.28,0.00032054,4]
[319497610,1710801564956,-626.02,0.00032054,4]
[319497611,1710801564983,-783.99,0.00032054,4]
[319497612,1710801565010,-500.0,0.00032054,4]
[319497613,1710801565043,-500.0,0.00032054,4]
[319497614,1710801565074,-500.0,0.00032054,4]
[319497615,1710801565105,-629.13,0.00032054,4]
[319497616,1710801565137,-1069.15,0.00032054,4]
[319497617,1710801565164,-500.0,0.00032054,4]
[319497618,1710801565201,-500.0,0.00032054,4]
[319497619,1710801565226,-2012.84,0.00032054,4]
[319497620,1710801565252,-611.79,0.00032054,4]
[319497621,1710801565277,-500.0,0.00032054,4]
[319497622,1710801565302,-942.32,0.00032054,4]
[319497623,1710801565326,-500.0,0.00032054,4]
[319497624,1710801565350,-1142.95,0.00032054,4]
[319497625,1710801565374,-525.8,0.00032054,4]
[319497626,1710801565398,-707.22,0.00032054,4]
[319497627,1710801565426,-630.44178605,0.00032054,4]
[319497628,1710801565451,-719.76,0.00032054,4]
[319497629,1710801565476,-1307.23,0.00032054,4]
[319497630,1710801565502,-500.0,0.00032054,4]
[319497631,1710801565527,-687.16,0.00032054,4]
[319497632,1710801565552,-150.49396833,0.0003211,30]
[319497633,1710801565578,-546.1181314,0.0003215,5]
[319497634,1710801565603,-357.97505957,0.000322,35]
[319497635,1710801565628,-153.94018796,0.00032202,7]
[319497636,1710801565654,-652.28,0.00032328,4]
[319497637,1710801565680,-626.02,0.00032328,4]
[319497638,1710801565705,-783.99,0.00032328,4]
[319497639,1710801565730,-500.0,0.00032328,4]
[319497640,1710801565755,-500.0,0.00032328,4]
[319497641,1710801565779,-500.0,0.00032328,4]
[319497642,1710801565804,-629.13,0.00032328,4]
[319497643,1710801565829,-1069.15,0.00032328,4]
[319497644,1710801565854,-500.0,0.00032328,4]
[319497645,1710801565878,-500.0,0.00032328,4]
[319497646,1710801565903,-2012.84,0.00032328,4]
[319497647,1710801566018,-611.79,0.00032328,4]
[319497648,1710801566044,-500.0,0.00032328,4]
[319497649,1710801566070,-942.32,0.00032328,4]
[319497650,1710801566095,-500.0,0.00032328,4]
[319497651,1710801566124,-1142.95,0.00032328,4]
[319497652,1710801566149,-525.8,0.00032328,4]
[319497653,1710801566174,-707.22,0.00032328,4]
[319497654,1710801566199,-719.76,0.00032328,4]
[319497655,1710801566224,-1307.23,0.00032328,4]
[319497656,1710801566249,-500.0,0.00032328,4]
[319497657,1710801566274,-687.16,0.00032328,4]
[319497658,1710801566299,-150.49396833,0.00032438,30]
[319497659,1710801566325,-151.031907,0.00032448,7]
[319497660,1710801566351,-652.28,0.00032602,4]
[319497661,1710801566377,-626.02,0.00032602,4]
[319497662,1710801566403,-783.99,0.00032602,4]
[319497663,1710801566433,-500.0,0.00032602,4]
[319497664,1710801566458,-500.0,0.00032602,4]
[319497665,1710801566483,-500.0,0.00032602,4]
[319497666,1710801566508,-629.13,0.00032602,4]
[319497667,1710801566533,-1069.15,0.00032602,4]
[319497668,1710801566559,-500.0,0.00032602,4]
[319497669,1710801566584,-500.0,0.00032602,4]
[319497670,1710801566610,-2012.84,0.00032602,4]
[319497671,1710801566635,-611.79,0.00032602,4]
[319497672,1710801566660,-420.2304276,0.00032602,4]
[319497673,1710801566689,-942.32,0.00032602,4]
[319497674,1710801566714,-500.0,0.00032602,4]
[319497675,1710801566740,-1142.95,0.00032602,4]
[319497676,1710801566765,-525.8,0.00032602,4]
[319497677,1710801566789,-707.22,0.00032602,4]
[319497678,1710801566814,-719.76,0.00032602,4]
[319497679,1710801566838,-1307.23,0.00032602,4]
[319497680,1710801566864,-500.0,0.00032602,4]
[319497681,1710801566889,-687.16,0.00032602,4]
[319497682,1710801566915,-150.49396833,0.00032795,30]
[319497683,1710801566944,-652.28,0.00032876,4]
[319497684,1710801566968,-626.02,0.00032876,4]
[319497685,1710801566995,-783.99,0.00032876,4]
[319497686,1710801567022,-500.0,0.00032876,4]
[319497687,1710801567051,-500.0,0.00032876,4]
[319497688,1710801567078,-500.0,0.00032876,4]
[319497689,1710801567106,-629.13,0.00032876,4]